bitfinex/quotes_ETHUSD_20250725
["timestamp","ask_amount","ask_price","bid_price","bid_amount"]
[1753407932173,0.8333,3688.0,3686.9,2.7122937]
[1753407932485,0.8333,3688.0,3686.7,4.477]
[1753407932486,0.8333,3688.0,3687.0,3.2036281]
[1753407932685,4.484,3688.6,3687.7,2.7116931]
[1753407932686,0.8333,3688.6,3687.7,2.7116931]
[1753407932893,0.1352,3688.5,3687.9,0.1352]
[1753407933657,3.65933974,3688.7,3687.7,4.496]
[1753407933950,2.8464763,3688.3,3687.8,0.1352]
[1753407934151,2.84648822,3688.3,3687.8,0.1352]
[1753407934353,2.71195677,3687.4,3686.6,3.21580993]
[1753407934586,0.4971,3687.5,3686.9,0.136]
[1753407934760,0.1352,3687.4,3686.9,0.136]
[1753407934967,0.136,3687.2,3686.6,0.136]
[1753407935694,0.4971,3687.1,3686.2,7.498]
[1753407936009,0.4971,3687.1,3685.6,0.4657]
[1753407936010,0.136,3686.9,3686.3,0.136]
[1753407936199,0.136,3686.3,3685.8,0.136]
[1753407936417,2.84875107,3686.3,3685.8,0.136]
[1753407936719,0.9483,3686.2,3685.8,0.136]
[1753407936875,0.136,3686.1,3685.2,0.4914]
[1753407937212,0.136,3686.1,3684.5,0.4657]
[1753407937213,0.136,3685.9,3685.3,0.136]
[1753407937413,0.55,3685.8,3685.3,0.136]
[1753407937586,0.55,3685.8,3685.3,0.6274]
[1753407938606,0.55,3685.8,3685.3,0.136]
[1753407938784,1.0471,3685.8,3685.3,0.136]
[1753407938979,0.55,3685.6,3685.3,0.136]
[1753407939305,0.55,3685.6,3685.1,0.136]
[1753407939306,0.686,3685.6,3685.1,0.136]
[1753407939603,0.55,3685.6,3685.2,0.4914]
[1753407939805,0.55,3685.6,3685.1,0.136]
[1753407939994,3.26331399,3685.6,3685.1,0.136]
[1753407940170,1.0471,3685.6,3685.1,0.136]
[1753407940370,0.55,3685.6,3685.1,0.136]
[1753407940568,0.55,3685.6,3685.1,0.6274]
[1753407940773,0.55,3685.4,3684.6,3.20537429]
[1753407941002,3.26343393,3685.4,3684.6,0.4914]
[1753407941310,0.686,3685.4,3684.9,0.136]
[1753407941610,0.55,3685.3,3684.9,0.136]
[1753407942104,0.5872,3685.4,3684.9,0.136]
[1753407942105,0.136,3685.4,3684.9,0.47013095]
[1753407942323,0.55,3685.5,3685.1,0.136]
[1753407942524,2.71331592,3685.6,3684.8,2.71384683]
[1753407942731,0.55,3685.3,3684.9,0.136]
[1753407942931,0.55,3685.3,3685.0,0.4914]
[1753407943231,3.26349065,3685.3,3684.9,0.136]
[1753407943525,0.55,3685.1,3684.3,2.7141885]
[1753407943691,0.55,3685.1,3684.7,0.136]
[1753407943892,0.55,3685.1,3684.2,0.5033]
[1753407943893,0.55,3684.9,3684.5,0.136]
[1753407944316,1.2659,3685.2,3684.5,2.85001948]
[1753407944524,0.686,3685.1,3684.6,0.4914]
[1753407945246,0.55,3684.8,3684.5,0.136]
[1753407945449,0.55,3684.3,3683.6,0.4949]
[1753407945646,0.55,3684.3,3683.8,0.136]
[1753407945946,0.55,3684.1,3683.7,0.136]
[1753407946150,0.55,3683.9,3683.2,2.71501631]
[1753407946443,0.55,3683.9,3683.3,0.136]
[1753407946830,3.26452607,3683.9,3683.3,0.136]
[1753407947350,0.55,3683.9,3683.3,0.136]
[1753407947716,0.55,3683.8,3683.3,0.136]
[1753407948111,0.55,3683.7,3683.3,0.136]
[1753407948329,0.55,3683.8,3683.3,0.136]
[1753407949041,0.55,3683.9,3683.3,0.136]
[1753407949348,0.9165,3684.6,3683.4,0.4949]
[1753407949555,0.136,3684.3,3684.1,2.71436674]
[1753407949707,0.136,3684.3,3684.1,0.136]
[1753407949708,0.4386,3684.3,3684.1,0.136]
[1753407950044,0.4386,3684.3,3683.6,0.136]
[1753407950045,0.55,3684.1,3683.6,0.136]
[1753407950243,0.686,3684.1,3683.6,0.136]
[1753407950461,0.686,3684.1,3683.6,0.6309]
[1753407950664,0.55,3684.5,3683.8,2.71456287]
[1753407950815,0.55,3684.3,3683.9,0.136]
[1753407951016,0.55,3684.3,3683.9,0.6309]
[1753407951430,0.002,3684.8,3684.0,0.9299]
[1753407951613,0.002,3684.8,3684.7,2.71392514]
[1753407951934,0.002,3684.8,3684.7,6.12131765]
[1753407952307,1e-08,3684.8,3684.7,7.55451765]
[1753407952511,0.002,3685.8,3685.4,6.21670967]
[1753407952824,0.002,3685.8,3685.4,10.70670967]
[1753407953024,0.002,3685.8,3685.4,11.63660967]
[1753407953227,0.002,3685.8,3685.4,18.28481467]
[1753407953425,0.002,3685.8,3685.4,20.25300683]
[1753407953626,1e-08,3685.8,3685.7,7.52650881]
[1753407954126,1e-08,3685.8,3685.7,11.45640881]
[1753407954534,1e-08,3685.8,3685.7,7.14638881]
[1753407954743,1e-08,3685.8,3685.7,9.04951646]
[1753407955147,1e-08,3685.8,3685.7,12.39579146]
[1753407955658,1e-08,3685.8,3685.7,9.04951646]
[1753407956558,1e-08,3685.8,3685.7,8.54621646]
[1753407956856,1e-08,3685.8,3685.7,13.02721646]
[1753407957153,1e-08,3685.8,3685.7,13.03021646]
[1753407958516,1e-08,3685.8,3685.1,0.4949]
[1753407958862,1e-08,3685.8,3685.7,2.71318881]
[1753407959365,1e-08,3685.8,3685.7,3.20808881]
[1753407959581,1e-08,3685.8,3684.7,0.76629251]
[1753407959782,0.55,3685.7,3684.9,0.4949]
[1753407960270,0.55,3685.5,3684.6,2.71394078]
[1753407960486,0.55,3685.5,3684.6,0.32172408]
[1753407960618,0.4386,3685.7,3684.9,2.71372212]
[1753407960619,0.55,3685.3,3684.9,2.71372212]
[1753407961084,3.26368328,3685.1,3684.0,3.71263582]
[1753407961240,0.4779,3685.0,3684.1,4.479]
[1753407961563,0.55,3684.9,3684.4,3.0]
[1753407961777,0.55,3684.9,3684.4,2.71412785]
[1753407961933,0.55,3684.9,3684.5,2.71401131]
[1753407962340,0.75200001,3685.8,3684.5,0.54282084]
[1753407962550,0.55,3685.5,3685.1,0.136]
[1753407963056,0.55,3685.3,3685.1,0.136]
[1753407963234,0.55,3685.2,3685.1,0.136]
[1753407963618,0.55,3685.5,3685.1,0.136]
[1753407963839,0.55,3685.5,3685.1,2.84961027]
[1753407964055,0.55,3685.5,3685.1,0.136]
[1753407964262,0.55,3685.5,3684.7,2.71385858]
[1753407964263,0.55,3685.3,3684.9,0.136]
[1753407964630,1.0279,3685.3,3684.9,0.136]
[1753407964856,0.75200001,3685.8,3685.0,0.02713704]
[1753407965056,0.75200001,3685.8,3685.3,2.71345453]
[1753407965246,1.4665,3685.7,3684.3,0.435]
[1753407965446,0.55,3685.5,3684.9,2.71372787]
[1753407965659,0.55,3685.5,3685.0,2.7136781]
[1753407966146,0.55,3685.3,3685.1,2.71362146]
[1753407967078,0.4779,3685.2,3684.8,2.71382794]
[1753407967282,0.55,3685.1,3684.6,3.0]
[1753407967494,1.0279,3685.5,3685.0,2.71363817]
[1753407967689,0.55,3685.7,3685.0,2.71363817]
[1753407967995,2.71308988,3685.9,3685.1,2.71363017]
[1753407967996,0.55,3685.3,3685.1,2.71363017]
[1753407968380,0.55,3685.3,3684.8,2.71381842]
[1753407968600,0.55,3685.3,3685.1,2.71362738]
[1753407969197,0.4386,3685.5,3685.1,2.71362738]
[1753407969499,0.55,3685.4,3685.3,2.71348329]
[1753407969696,0.55,3685.7,3685.3,0.4949]
[1753407969896,1.4665,3685.7,3684.7,0.7471]
[1753407970102,1.4665,3685.6,3684.5,4.9659]
[1753407970303,0.55,3685.4,3684.6,2.71393413]
[1753407970463,0.55,3685.2,3684.7,2.7139129]
[1753407970662,0.55,3685.0,3684.7,2.7139129]
[1753407970864,0.55,3685.0,3684.5,4.471]
[1753407971200,0.55,3684.8,3684.4,3.0]
[1753407971400,0.55,3684.8,3684.3,2.71416949]
[1753407971401,0.55,3684.8,3684.3,3.0]
[1753407971698,0.55,3684.8,3684.6,2.71399574]
[1753407971996,1.3018,3685.4,3684.8,2.71385149]
[1753407972675,0.55,3685.2,3684.6,2.71395318]
[1753407973072,0.55,3685.2,3684.3,3.79633]
[1753407973073,0.55,3685.2,3684.7,2.71391449]
[1753407973259,0.55,3685.2,3684.5,2.71407246]
[1753407973463,0.55,3685.2,3684.7,2.71387898]
[1753407973877,0.4386,3685.3,3684.3,3.0]
[1753407973878,0.55,3685.0,3684.3,3.0]
[1753407974079,0.55,3684.8,3684.3,2.71417058]
[1753407974263,0.55,3684.6,3684.1,2.71435991]
[1753407974488,1.4665,3684.6,3684.1,2.71435991]
[1753407974903,1.4665,3684.6,3684.4,0.136]
[1753407975219,1.4665,3684.6,3683.7,3.0]
[1753407975220,0.55,3684.4,3684.1,0.136]
[1753407975714,0.9208,3684.3,3684.1,0.136]
[1753407976214,0.55,3684.3,3684.2,2.71429346]
[1753407976404,0.55,3684.3,3684.2,3.20079346]
[1753407977197,0.55,3684.2,3684.1,0.136]
[1753407977595,0.55,3684.2,3683.5,4.453]
[1753407977596,1.4708,3684.2,3683.5,4.453]
[1753407977823,1.4708,3684.2,3684.0,0.136]
[1753407977985,0.55,3684.4,3684.0,2.85040324]
[1753407978320,0.55,3684.6,3684.1,2.71430431]
[1753407978542,0.55,3684.6,3684.3,0.136]
[1753407979316,1.4708,3684.6,3684.3,0.136]
[1753407980631,0.9909,3684.6,3684.3,0.136]
[1753407980833,0.55,3684.6,3684.5,2.71407246]
[1753407981031,0.55,3684.6,3684.5,0.136]
[1753407982033,0.8012,3685.2,3684.6,2.71394926]
[1753407982192,0.8012,3685.2,3684.6,0.4865]
[1753407982393,0.8012,3685.2,3684.8,2.84980462]
[1753407982589,0.8012,3685.2,3684.8,0.136]
[1753407982793,0.9208,3685.1,3684.1,2.71431875]
[1753407983030,0.55,3684.7,3684.3,0.136]
[1753407983394,0.55,3684.5,3684.3,0.136]
[1753407984322,0.55,3685.1,3684.4,0.4865]
[1753407984491,0.8012,3685.2,3684.8,0.136]
[1753407984826,0.9208,3685.1,3684.8,0.136]
[1753407985202,0.55,3685.0,3684.8,0.136]
[1753407985805,1.4708,3685.0,3684.8,0.136]
[1753407986819,0.55,3684.8,3684.1,0.001]
[1753407987002,0.55,3684.8,3684.3,0.136]
[1753407987327,0.55,3684.6,3684.3,0.136]
[1753407987733,0.9208,3684.5,3684.3,0.136]
[1753407987932,0.55,3684.4,3684.3,0.136]
[1753407988317,1.4708,3684.4,3684.3,0.136]
[1753407988721,0.55,3684.3,3684.1,0.001]
[1753407988917,1.4708,3684.3,3684.1,0.001]
[1753407989118,0.55,3684.4,3684.1,0.001]
[1753407989992,1.4708,3684.4,3684.1,0.001]
[1753407990209,0.55,3684.2,3684.1,0.001]
[1753407991248,1.1269,3684.2,3684.1,0.001]
[1753407991400,0.686,3684.2,3684.1,0.001]
[1753407991752,0.686,3684.2,3683.7,0.136]
[1753407991753,2.4112,3684.2,3683.7,0.136]
[1753407992043,0.55,3683.8,3683.3,0.136]
[1753407992393,0.55,3683.6,3683.3,0.136]
[1753407993445,0.55,3683.6,3683.3,0.001]
[1753407993748,1.3102,3683.4,3683.3,0.001]
[1753407994247,2.231,3683.4,3683.3,0.001]
[1753407994400,5.08188298,3683.4,3683.3,0.001]
[1753407995099,2.367,3683.4,3683.3,0.001]
[1753407995300,1.9261,3683.4,3683.3,0.001]
[1753407995495,4.973,3683.4,3683.3,0.001]
[1753407995725,0.4799,3684.0,3683.3,2.71595669]
[1753407996033,0.4409,3684.4,3683.6,2.71469886]
[1753407996034,4.423,3684.1,3683.6,2.71469886]
[1753407996225,4.423,3684.3,3683.9,0.136]
[1753407996547,0.7884,3685.3,3684.0,0.9504444]
[1753407996833,0.4409,3685.7,3684.7,0.1178]
[1753407997040,4.422,3685.7,3685.1,0.136]
[1753407997244,4.424,3685.7,3685.0,2.7137042]
[1753407997539,0.002,3685.7,3685.6,2.71326242]
[1753407997741,0.002,3685.7,3685.6,2.84926242]
[1753407998104,0.002,3685.7,3685.6,0.136]
[1753407998300,0.7795,3685.6,3684.3,0.1178]
[1753407998651,3.26371319,3685.0,3684.6,0.136]
[1753407998801,0.55,3684.8,3684.6,0.136]
[1753407999196,0.55,3685.1,3684.6,0.136]
[1753407999496,0.55,3685.1,3683.9,3.14494514]
[1753407999497,0.136,3684.7,3683.9,4.5398]
[1753407999736,0.55,3684.6,3684.2,0.136]
[1753408000436,0.9208,3685.3,3684.3,2.71421267]
[1753408000639,0.55,3685.0,3684.5,0.136]
[1753408000841,0.55,3685.0,3684.3,2.71421853]
[1753408001021,0.686,3685.2,3684.7,0.136]
[1753408001627,0.55,3685.3,3684.8,2.71383871]
[1753408001806,0.7795,3685.4,3684.9,0.136]
[1753408001807,0.136,3685.4,3684.9,0.136]
[1753408002007,0.136,3685.4,3684.7,0.1178]
[1753408002008,1.0588,3685.7,3685.1,0.136]
[1753408002207,1.0588,3685.7,3685.2,2.7134852]
[1753408002208,0.138,3685.7,3685.2,2.7134852]
[1753408002400,0.002,3685.7,3685.5,0.136]
[1753408003306,0.55,3685.3,3684.7,4.413]
[1753408003615,0.55,3685.3,3685.0,0.136]
[1753408003936,1.4708,3685.3,3685.0,0.136]
[1753408004841,1.0299,3685.3,3685.0,0.136]
[1753408005046,0.55,3685.3,3685.0,0.136]
[1753408007052,0.9228,3685.7,3685.1,4.406]
[1753408007053,0.552,3685.7,3685.1,4.406]
[1753408007352,0.552,3685.7,3685.2,0.136]
[1753408008255,0.002,3685.7,3685.5,0.136]
[1753408008754,0.002,3685.7,3685.5,2.84927781]
[1753408008927,0.002,3685.7,3685.5,0.136]
[1753408009414,0.002,3685.7,3685.5,2.84927697]
[1753408009954,0.002,3685.7,3685.6,2.71326242]
[1753408010162,0.002,3685.7,3685.6,0.72390793]
[1753408010363,1e-08,3685.7,3685.6,8.15466242]
[1753408010526,1e-08,3685.7,3685.6,11.15466242]
[1753408010722,1e-08,3685.7,3685.6,10.68346242]
[1753408011051,1e-08,3685.7,3685.6,11.15466242]
[1753408011865,1e-08,3685.7,3684.7,2.71388814]
[1753408011866,1e-08,3685.7,3684.3,5.33181069]
[1753408012026,0.55,3685.6,3685.2,2.7135038]
[1753408012360,0.55,3685.4,3684.6,2.71394022]
[1753408012555,0.55,3685.4,3684.6,4.415]
[1753408012863,0.55,3685.4,3684.7,3.0]
[1753408013359,0.55,3685.4,3684.5,0.1178]
[1753408013360,0.55,3685.2,3684.5,4.413]
[1753408013723,0.55,3685.2,3684.6,2.71398491]
[1753408013925,0.55,3685.2,3684.7,0.73983774]
[1753408014121,0.55,3685.2,3684.5,4.413]
[1753408014325,0.55,3685.2,3684.7,3.0]
[1753408014664,0.55,3685.2,3684.5,4.413]
[1753408014858,0.55,3685.0,3684.5,4.413]
[1753408015045,0.55,3685.0,3684.2,3.0]
[1753408015247,0.4612,3684.9,3684.3,2.71419958]
[1753408015570,0.4612,3684.9,3684.1,4.5278]
[1753408015571,0.55,3684.8,3684.1,2.71435366]
[1753408016149,0.55,3684.8,3684.3,2.71421732]
[1753408016662,0.55,3684.8,3684.2,2.71426569]
[1753408016863,0.55,3684.8,3683.8,2.71453825]
[1753408017039,0.55,3684.8,3683.8,2.7145732]
[1753408017040,0.9862,3684.8,3683.8,2.7145732]
[1753408017358,0.55,3684.4,3683.7,2.71464597]
[1753408017570,0.55,3684.4,3683.8,3.0]
[1753408017945,0.55,3684.4,3683.7,3.0]
[1753408018153,0.55,3684.4,3684.0,2.71443926]
[1753408018353,0.55,3684.4,3683.7,5.71464411]
[1753408018535,0.55,3684.4,3683.7,3.0]
[1753408018738,1.0112,3684.4,3683.6,4.404]
[1753408018972,1.0112,3684.4,3683.6,7.11873143]
[1753408019172,0.55,3684.4,3683.7,2.71460855]
[1753408019382,0.55,3684.4,3683.3,0.001]
[1753408019550,0.55,3684.2,3683.3,0.001]
[1753408019738,0.55,3684.0,3683.3,0.001]
[1753408020362,0.686,3684.0,3683.5,0.136]
[1753408020597,0.55,3683.8,3683.5,0.136]
[1753408020795,3.26488298,3683.4,3683.3,0.001]
[1753408020996,4.18818298,3683.4,3683.3,0.001]
[1753408021155,5.08558298,3683.4,3683.3,0.001]
[1753408021360,1.3373,3683.1,3683.0,0.001]
[1753408021657,5.8703,3683.1,3683.0,0.001]
[1753408021888,6.7677,3683.1,3683.0,0.001]
[1753408022689,2.3707,3683.1,3683.0,0.001]
[1753408022890,6.7677,3683.1,3683.0,0.001]
[1753408023465,0.55,3683.1,3683.0,0.001]
[1753408023695,0.7883,3683.5,3683.0,0.27262427]
[1753408023891,0.7883,3683.5,3683.0,0.40862427]
[1753408024095,0.55,3683.4,3683.0,0.137]
[1753408024409,0.55,3683.4,3683.0,2.85217218]
[1753408024587,0.55,3683.4,3683.0,0.137]
[1753408024980,0.136,3683.7,3683.6,5.71473558]
[1753408025183,3.17530019,3684.5,3683.6,3.0]
[1753408025384,0.55,3684.4,3683.6,3.0]
[1753408025624,0.4612,3684.5,3683.6,3.0]
[1753408026215,4.394,3684.5,3683.6,6.01468637]
[1753408026428,3.61154612,3684.4,3683.6,3.0]
[1753408026593,0.55,3684.3,3683.5,3.0]
[1753408026793,0.55,3684.3,3683.1,0.1188]
[1753408027032,1.3528,3684.1,3683.3,0.001]
[1753408027212,0.002,3683.7,3683.3,0.001]
[1753408027595,0.55,3683.5,3683.3,0.001]
[1753408027921,1.0112,3683.5,3683.3,0.001]
[1753408028225,1.3532,3683.4,3683.3,0.001]
[1753408028416,0.55,3683.4,3683.3,0.001]
[1753408028618,0.55,3683.4,3683.3,2.71595669]
[1753408029122,0.55,3683.4,3683.3,0.001]
[1753408029343,0.55,3683.4,3683.3,2.71595669]
[1753408029505,0.55,3683.4,3683.3,4.19535427]
[1753408029829,0.002,3683.7,3683.6,2.71473558]
[1753408030031,0.002,3683.7,3683.6,5.71473558]
[1753408030230,0.002,3683.7,3683.6,6.63633558]
[1753408030838,0.002,3683.7,3683.4,2.71488075]
[1753408031036,0.002,3683.7,3683.3,0.55879758]
[1753408031330,0.002,3683.7,3683.3,1.02999758]
[1753408031538,0.002,3683.7,3683.6,2.71473558]
[1753408032192,0.002,3683.7,3683.3,0.001]
[1753408032703,0.002,3683.7,3683.4,2.71483436]
[1753408033042,0.002,3683.7,3683.3,0.001]
[1753408033207,0.002,3683.7,3683.4,2.71488298]
[1753408033397,0.002,3683.7,3683.4,0.4712]
[1753408033748,0.002,3683.7,3683.4,3.21322087]
[1753408033903,0.002,3683.7,3683.6,2.71473558]
[1753408035334,0.002,3683.7,3683.6,0.136]
[1753408035939,5.9,3683.7,3683.3,0.001]
[1753408036157,0.55,3683.5,3683.0,0.001]
[1753408036370,0.55,3683.5,3683.2,0.136]
[1753408036576,0.55,3683.1,3683.0,0.001]
[1753408036928,4.945,3683.1,3683.0,0.001]
[1753408037128,4.945,3683.1,3683.0,0.137]
[1753408037640,0.55,3683.1,3683.0,0.137]
[1753408037826,0.55,3683.1,3683.0,3.31267784]
[1753408038022,0.55,3683.1,3683.0,0.137]
[1753408038626,0.55,3683.1,3683.0,0.001]
[1753408039454,1.0316,3683.1,3683.0,0.001]
[1753408039663,1.503,3683.1,3683.0,0.001]
[1753408039981,2.2676,3683.1,3683.0,0.001]
[1753408040282,4.98270412,3683.1,3683.0,0.001]
[1753408040428,2.4036,3683.1,3683.0,0.001]
[1753408040623,5.11870412,3683.1,3683.0,0.001]
[1753408042839,2.4036,3683.1,3683.0,0.001]
[1753408043172,6.7946,3683.1,3683.0,0.001]
[1753408043778,9.50970412,3683.1,3683.0,0.001]
[1753408044330,2.4036,3683.1,3683.0,0.001]
[1753408044530,9.50170412,3683.1,3683.0,0.001]
[1753408045240,5.6966,3683.1,3683.0,0.001]
[1753408046327,6.168,3683.1,3683.0,0.001]
[1753408046632,5.6966,3683.1,3683.0,0.001]
[1753408046854,2.71666452,3683.7,3683.0,0.001]
[1753408046855,0.4816,3683.5,3683.0,0.001]
[1753408047025,0.4816,3683.5,3683.0,0.137]
[1753408047026,0.818,3683.5,3683.0,0.137]
[1753408047228,4.382,3683.4,3683.0,0.137]
[1753408047425,4.8636,3683.4,3683.0,0.137]
[1753408047831,0.55,3683.4,3683.0,0.137]
[1753408048136,4.382,3683.3,3683.0,2.85215389]
[1753408048642,0.138,3683.7,3683.0,1.15424695]
[1753408048850,4.382,3683.6,3683.5,2.71477221]
[1753408049051,4.932,3683.6,3683.5,0.4605]
[1753408049252,0.55,3683.5,3683.3,0.1188]
[1753408049442,0.55,3683.5,3683.1,2.71510397]
[1753408049641,0.55,3683.5,3683.4,0.136]
[1753408050043,0.55,3683.5,3683.0,0.001]
[1753408050044,1.0316,3683.5,3683.1,0.136]
[1753408050595,1.503,3683.5,3683.1,0.136]
[1753408050887,0.55,3683.3,3683.1,0.136]
[1753408051096,4.382,3683.2,3683.1,0.136]
[1753408051903,3.26510412,3683.1,3683.0,0.001]
[1753408052100,1.503,3683.1,3683.0,0.001]
[1753408052449,4.21810412,3683.1,3683.0,0.001]
[1753408052967,4.98460412,3683.1,3683.0,0.001]
[1753408053281,7.98460412,3683.1,3683.0,0.001]
[1753408054079,4.0320465,3682.5,3682.4,0.001]
[1753408054259,8.5500465,3682.5,3682.4,0.001]
[1753408054585,9.5030465,3682.5,3682.4,0.001]
[1753408055061,12.5030465,3682.5,3682.4,0.001]
[1753408056791,1.4525,3682.5,3682.4,0.001]
[1753408056944,4.382,3682.5,3682.4,0.001]
[1753408057149,0.7941,3683.4,3682.4,1.1693]
[1753408057350,0.7941,3683.8,3683.2,2.71500052]
[1753408057599,4.382,3683.6,3683.3,2.85093654]
[1753408057770,4.382,3683.6,3683.5,0.136]
[1753408058088,4.382,3683.6,3683.5,2.85080928]
[1753408058486,0.9301,3684.2,3683.6,2.71473558]
[1753408058487,4.382,3683.8,3683.6,2.71473558]
[1753408058675,0.552,3683.7,3683.6,2.71473558]
[1753408058885,0.552,3683.7,3683.6,3.17523558]
[1753408059194,0.002,3683.7,3683.6,3.17523558]
[1753408059599,0.552,3683.7,3683.6,3.17523558]
[1753408059895,0.552,3683.7,3683.6,3.62723558]
[1753408059896,0.002,3683.7,3683.6,3.62723558]
[1753408060198,0.002,3683.7,3683.6,4.28702516]
[1753408060758,0.002,3683.7,3683.6,0.4605]
[1753408060964,0.002,3683.7,3683.5,0.136]
[1753408061469,0.55,3683.5,3683.1,2.71509736]
[1753408061669,0.55,3683.5,3683.3,0.136]
[1753408061876,0.55,3683.5,3683.4,0.4605]
[1753408062092,4.381,3683.6,3683.4,0.4605]
[1753408062093,0.55,3683.6,3683.4,0.9125]
[1753408062293,0.55,3683.6,3683.4,0.452]
[1753408062503,0.55,3683.6,3683.5,3.76324356]
[1753408062662,0.55,3683.6,3683.5,4.41105821]
[1753408062999,0.002,3683.7,3683.6,2.71473558]
[1753408063166,0.002,3683.7,3683.6,3.62723558]
[1753408063762,0.002,3683.7,3683.6,3.74703558]
[1753408063995,0.002,3683.7,3683.6,3.77418293]
[1753408064302,0.002,3683.7,3683.6,0.1198]
[1753408064485,0.002,3683.7,3683.5,0.136]
[1753408064682,0.55,3683.6,3683.1,2.83489993]
[1753408064998,0.55,3683.6,3683.4,0.136]
[1753408065587,1.0228,3683.6,3683.0,2.71516477]
[1753408065792,1.0228,3683.6,3683.3,0.136]
[1753408065988,0.55,3683.4,3683.3,0.136]
[1753408066189,0.55,3683.4,3682.7,0.1198]
[1753408066190,0.55,3683.2,3682.9,0.136]
[1753408066390,5.3384,3683.1,3682.9,0.136]
[1753408066807,2.2733,3683.0,3682.4,0.001]
[1753408067109,2.4093,3683.0,3682.5,0.136]
[1753408067407,0.55,3682.8,3682.5,0.136]
[1753408067585,4.381,3682.7,3682.5,0.136]
[1753408069466,4.381,3682.6,3682.5,0.136]
[1753408069670,4.931,3682.6,3682.5,3.8057465]
[1753408069891,4.931,3682.6,3682.5,0.136]
[1753408070506,4.931,3682.6,3682.5,2.8515465]
[1753408070869,4.931,3682.6,3682.5,0.136]
[1753408071914,0.55,3682.5,3682.4,0.001]
[1753408072503,4.381,3682.5,3682.4,3.69797644]
[1753408072705,4.381,3682.5,3682.4,4.32588887]
[1753408073881,0.55,3683.3,3682.8,2.71531382]
[1753408074086,0.136,3683.4,3682.9,2.8512469]
[1753408074400,4.93,3683.3,3682.9,0.136]
[1753408074918,5.4146,3683.3,3682.9,0.136]
[1753408075218,0.55,3683.1,3682.9,0.136]
[1753408075718,4.38,3683.0,3682.9,0.136]
[1753408075890,5.3374,3683.0,3682.9,0.136]
[1753408076416,4.8646,3683.0,3682.9,0.136]
[1753408076581,5.4146,3683.0,3682.4,0.001]
[1753408076776,0.55,3682.9,3682.8,0.136]
[1753408076982,1.5074,3682.9,3682.6,0.136]
[1753408077280,0.4846,3682.8,3682.6,0.136]
[1753408077480,4.93,3682.7,3682.6,0.136]
[1753408077717,0.55,3682.6,3682.4,0.001]
[1753408077913,1.0346,3682.6,3682.4,0.001]
[1753408078422,1.5074,3682.5,3682.4,0.001]
[1753408078614,1.6434,3682.5,3682.4,0.001]
[1753408079081,4.3589465,3682.5,3682.4,0.001]
[1753408079718,5.1185465,3682.5,3682.4,0.001]
[1753408080529,2.71569399,3682.3,3681.7,0.001]
[1753408080678,4.02581034,3681.6,3681.5,0.001]
[1753408080883,4.02581034,3681.6,3680.1,0.001]
[1753408080884,0.55,3681.3,3680.1,0.001]
[1753408081106,3.26682213,3680.8,3680.1,0.001]
[1753408081308,0.55,3680.5,3680.1,0.001]
[1753408081526,3.26724362,3680.2,3680.1,0.001]
[1753408081739,0.686,3680.2,3680.1,0.001]
[1753408081941,8.74064362,3680.2,3680.1,0.001]
[1753408082446,12.50024362,3680.2,3680.1,0.001]
[1753408083300,8.12024362,3680.2,3680.1,0.001]
[1753408083737,12.50024362,3680.2,3680.1,0.001]
[1753408084441,5.403,3680.2,3680.1,0.001]
[1753408084612,1.4456,3680.2,3680.1,0.001]
[1753408084814,0.7808,3680.6,3680.1,0.001]
[1753408085027,0.136,3680.9,3680.5,2.7169615]
[1753408085234,4.381,3680.8,3680.5,2.7169615]
[1753408085538,4.381,3680.8,3680.4,0.136]
[1753408085762,0.4728,3680.7,3680.1,0.001]
[1753408085907,3.26724362,3680.2,3680.1,0.001]
[1753408086228,8.48084362,3680.2,3680.1,0.001]
[1753408086438,2.34,3680.2,3680.1,0.001]
[1753408086611,6.2482,3680.2,3680.1,0.001]
[1753408087007,0.55,3680.2,3680.1,0.001]
[1753408087231,4.381,3680.2,3680.1,0.137]
[1753408087742,5.8884,3680.2,3680.1,0.001]
[1753408087944,0.686,3680.2,3680.1,0.001]
[1753408088143,5.067,3680.2,3680.1,0.001]
[1753408088515,0.686,3680.2,3680.1,0.001]
[1753408088818,5.5516,3680.2,3680.1,0.001]
[1753408089224,1.33181217,3680.2,3680.1,0.001]
[1753408089436,5.57681217,3680.2,3680.1,0.137]
[1753408090156,1.74581217,3680.2,3680.1,2.71831746]
[1753408090345,1.19581217,3680.2,3680.1,0.137]
[1753408090546,5.57681217,3680.2,3680.1,0.137]
[1753408090716,1.19581217,3680.2,3680.1,3.80851746]
[1753408095362,1.19581217,3680.2,3680.1,2.85431746]